bitfinex-derivatives/quotes_SOLF0:USTF0_20241021
["timestamp","ask_amount","ask_price","bid_price","bid_amount"]
[1729475897099,7.5659,169.77,169.71,5.94443992]
[1729475897499,7.5659,169.77,169.72,1.47408238]
[1729475897799,7.5659,169.77,169.71,5.94443992]
[1729475897995,2.9459,169.77,169.72,1.47409782]
[1729475898198,4.62,169.76,169.71,5.94443992]
[1729475898395,4.62,169.76,169.72,1.47411725]
[1729475898599,4.62,169.76,169.71,5.94443992]
[1729475898800,4.62,169.76,169.72,1.47414353]
[1729475898995,7.5662,169.76,169.69,2.9472]
[1729475899200,4.62,169.76,169.7,2.9484372]
[1729475899498,4.62,169.76,169.71,1.4742186]
[1729475899703,4.62,169.76,169.69,5.88078061]
[1729475899897,4.62,169.76,169.7,2.94841299]
[1729475900092,4.62,169.76,169.71,1.4742065]
[1729475900292,4.62,169.76,169.69,5.88078061]
[1729475900293,7.5661,169.76,169.72,1.4742065]
[1729475900492,7.5661,169.76,169.69,5.88078061]
[1729475900692,7.5661,169.76,169.7,2.9484372]
[1729475900892,7.5661,169.76,169.71,1.4742186]
[1729475901100,7.5661,169.76,169.69,5.88078061]
[1729475901403,7.5661,169.76,169.7,2.94844066]
[1729475901704,7.5661,169.76,169.71,1.47422033]
[1729475902003,7.5661,169.76,169.72,1.47422033]
[1729475902204,7.5661,169.76,169.69,5.88078061]
[1729475902400,7.5661,169.76,169.7,2.9484372]
[1729475902601,7.5661,169.76,169.71,1.4742186]
[1729475902802,7.5661,169.76,169.72,1.4742186]
[1729475903002,7.5661,169.76,169.7,2.947]
[1729475903202,7.5661,169.76,169.71,1.4742181]
[1729475903400,7.5661,169.76,169.72,1.4742181]
[1729475903596,7.5661,169.76,169.7,2.947]
[1729475903800,7.5661,169.76,169.71,1.47421798]
[1729475904001,7.5661,169.76,169.72,1.47421798]
[1729475904204,7.5661,169.76,169.7,2.947]
[1729475904400,7.5661,169.76,169.71,1.47421798]
[1729475904606,2.9462,169.75,169.7,2.947]
[1729475905003,2.9462,169.75,169.71,1.47425261]
[1729475905300,2.9462,169.75,169.7,2.947]
[1729475905503,2.9462,169.75,169.71,1.47425137]
[1729475905703,4.62,169.76,169.64,2.6127]
[1729475905704,22.3,169.76,169.64,2.6127]
[1729475905903,17.68,169.73,169.65,2.9487753]
[1729475906103,22.3,169.72,169.66,1.47438765]
[1729475906308,22.3,169.72,169.54,1.3176]
[1729475906309,2.9475,169.68,169.61,2.9485]
[1729475906501,4.62,169.67,169.62,7.24079215]
[1729475906808,17.68,169.72,169.63,1.47471391]
[1729475906809,4.62,169.66,169.63,1.47471391]
[1729475907005,4.62,169.66,169.61,2.9485]
[1729475907204,4.62,169.66,169.62,1.47483376]
[1729475907507,4.62,169.66,169.63,1.47483376]
[1729475907706,4.62,169.66,169.61,2.9485]
[1729475908008,4.62,169.66,169.62,1.47484531]
[1729475908210,4.62,169.66,169.63,1.47484691]
[1729475908397,4.62,169.66,169.61,2.9485]
[1729475908702,4.62,169.66,169.62,1.47485154]
[1729475908896,4.62,169.66,169.61,2.9485]
[1729475909103,4.62,169.66,169.62,1.47487301]
[1729475909305,4.62,169.66,169.61,2.9485]
[1729475909510,4.62,169.66,169.62,1.47486839]
[1729475909711,4.62,169.66,169.6,5.86327106]
[1729475909902,4.62,169.66,169.61,1.47483621]
[1729475910105,4.62,169.66,169.62,1.47483621]
[1729475910303,4.62,169.66,169.6,2.9488]
[1729475910613,4.62,169.66,169.61,4.42331562]
[1729475910911,4.62,169.66,169.62,1.47481562]
[1729475911110,4.62,169.66,169.61,2.9485]
[1729475911409,4.62,169.66,169.62,1.47478354]
[1729475911611,4.62,169.66,169.61,2.9485]
[1729475911804,4.62,169.66,169.62,1.47477937]
[1729475912005,4.62,169.66,169.61,2.9485]
[1729475912205,4.62,169.66,169.62,1.47478131]
[1729475912412,4.62,169.66,169.61,2.9485]
[1729475912807,4.62,169.66,169.63,2.9482]
[1729475913014,4.62,169.66,169.56,4.62]
[1729475913214,4.62,169.69,169.57,7.23174728]
[1729475913409,4.62,169.69,169.58,7.23174728]
[1729475913613,4.62,169.69,169.59,7.23174728]
[1729475913805,4.62,169.69,169.6,14.36884728]
[1729475914102,4.62,169.69,169.61,2.94947669]
[1729475914307,4.62,169.7,169.62,1.47473858]
[1729475914506,4.62,169.7,169.63,1.47473858]
[1729475914809,4.62,169.7,169.63,2.9483]
[1729475917918,4.62,169.7,169.6,7.1371]
[1729475918100,4.62,169.7,169.64,2.948]
[1729475918302,4.62,169.7,169.65,1.47454492]
[1729475918606,4.62,169.7,169.61,4.27910818]
[1729475918912,4.62,169.7,169.62,7.22819614]
[1729475919106,4.62,169.7,169.63,2.94908796]
[1729475919307,4.62,169.7,169.64,1.47454398]
[1729475919613,4.62,169.7,169.65,1.47454398]
[1729475919809,4.62,169.7,169.61,4.27915484]
[1729475920016,4.62,169.7,169.64,2.948]
[1729475920412,4.62,169.7,169.65,1.47454813]
[1729475920614,4.62,169.7,169.64,2.948]
[1729475920815,4.62,169.7,169.65,1.47454653]
[1729475921112,4.62,169.7,169.64,2.948]
[1729475922105,4.62,169.7,169.65,1.47454831]
[1729475922313,4.62,169.7,169.67,2.9475]
[1729475922914,4.6,169.72,169.67,2.9475]
[1729475926214,17.68,169.84,169.68,4.6]
[1729475926417,7.5453,169.81,169.69,2.94797972]
[1729475926619,4.6,169.8,169.7,2.94797972]
[1729475926922,4.6,169.8,169.71,1.47398986]
[1729475927114,4.6,169.8,169.72,1.47398986]
[1729475927319,4.6,169.8,169.73,1.47387694]
[1729475927519,4.6,169.8,169.69,4.27458718]
[1729475927717,4.6,169.8,169.74,2.9462]
[1729475927920,100.77691427,169.82,169.72,4.6]
[1729475928114,100.77691427,169.82,169.73,1.47387492]
[1729475928316,100.77691427,169.82,169.72,4.6]
[1729475928512,100.77691427,169.82,169.74,1.47370304]
[1729475928720,100.77691427,169.82,169.75,1.47370304]
[1729475928918,100.77691427,169.82,169.72,4.6]
[1729475929118,100.77691427,169.82,169.73,7.21937902]
[1729475929326,100.77691427,169.82,169.74,1.47365034]
[1729475929526,100.77691427,169.82,169.75,1.47365034]
[1729475929727,5.8629,169.87,169.81,2.9451]
[1729475929929,5.8629,169.87,169.76,4.6]
[1729475929930,5.8629,169.87,169.76,7.0665]
[1729475930129,5.8629,169.87,169.77,1.47339886]
[1729475930426,5.8629,169.87,169.76,10.07181958]
[1729475930724,5.8629,169.87,169.77,1.47342116]
[1729475930924,5.8629,169.87,169.8,2.9453]
[1729475933024,5.8629,169.87,169.79,2.9454]
[1729475933224,5.8629,169.87,169.76,10.07181958]
[1729475933425,5.8629,169.87,169.77,1.4733829]
[1729475933625,5.8629,169.87,169.76,10.07181958]
[1729475933926,5.8629,169.87,169.77,1.47338121]
[1729475934127,5.8629,169.87,169.76,10.07181958]
[1729475934722,5.8629,169.87,169.81,2.9451]
[1729475937221,5.8629,169.87,169.79,2.9454]
[1729475937420,5.8629,169.87,169.76,10.07181958]
[1729475938219,5.8629,169.87,169.81,2.945]
[1729475938620,5.8629,169.87,169.76,10.07181958]
[1729475939327,5.8629,169.87,169.76,2.9459]
[1729475939523,2.9448,169.84,169.76,5.92694599]
[1729475939923,100.75383048,169.86,169.76,5.92694599]
[1729475940132,2.9448,169.83,169.76,5.92694599]
[1729475942231,2.9448,169.84,169.77,2.9458]
[1729475943026,2.9448,169.84,169.77,5.85393665]
[1729475943832,100.75383048,169.86,169.77,5.85393665]
[1729475944027,2.9449,169.83,169.77,5.85393665]
[1729475946539,2.9452,169.81,169.77,2.90813665]
[1729475946732,4.6,169.83,169.73,4.6]
[1729475947330,2.945,169.82,169.76,2.9459]
[1729475947525,4.6,169.83,169.73,7.61156077]
[1729475948837,7.5448,169.83,169.76,2.946]
[1729475949040,7.5448,169.83,169.73,7.61156077]
[1729475949041,4.6,169.83,169.73,7.61156077]
[1729475949338,2.9445,169.85,169.77,2.9457]
[1729475949540,7.5445,169.85,169.77,2.9457]
[1729475951839,7.5445,169.85,169.78,2.9456]
[1729475956233,4.6,169.85,169.73,3.01156077]
[1729475956539,4.6,169.85,169.72,1.3059]
[1729475956540,2.9456,169.79,169.72,2.9467]
[1729475956737,4.6,169.81,169.72,2.95476222]
[1729475956932,7.5452,169.81,169.74,2.9464]
[1729475957135,7.5452,169.81,169.74,5.83428307]
[1729475961045,2.9454,169.8,169.74,5.83428307]
[1729475965647,1.2629,169.87,169.78,2.9457]
[1729475965855,5.9288,169.86,169.74,7.48788307]
[1729475966945,2.9449,169.83,169.77,2.9458]
[1729475967242,5.9288,169.86,169.74,7.48788307]
[1729475968039,2.9449,169.83,169.75,2.9461]
[1729475968239,5.9288,169.86,169.74,7.48788307]
[1729475969943,2.9451,169.82,169.76,2.946]
[1729475972051,2.9451,169.82,169.75,2.9462]
[1729475972352,4.6,169.82,169.74,2.88788307]
[1729475972542,4.6,169.82,169.73,8.7786]
[1729475972746,2.9454,169.8,169.73,8.72425387]
[1729475972947,4.6,169.82,169.73,8.72425387]
[1729475973451,2.9452,169.81,169.74,2.9462]
[1729475973846,2.9452,169.81,169.75,2.9461]
[1729475974051,4.6,169.82,169.73,8.72425387]
[1729475975850,4.6,169.82,169.76,2.9459]
[1729475977854,4.6,169.82,169.75,2.9461]
[1729475978156,4.6,169.82,169.73,8.72425387]
[1729475978454,102.08303041,169.86,169.73,8.72425387]
[1729475978654,1.3406,169.89,169.73,8.72425387]
[1729475978857,5.9406,169.89,169.73,8.72425387]
[1729475979155,1.3406,169.89,169.73,8.72425387]
[1729475979351,1.3406,169.89,169.73,10.197977]
[1729475979553,1.3406,169.89,169.73,26.42425387]
[1729475979858,1.3406,169.89,169.74,1.47372313]
[1729475980559,1.3406,169.89,169.73,26.42425387]
[1729475980763,1.3406,169.89,169.74,1.47310545]
[1729475980956,1.3406,169.89,169.83,2.9448]
[1729475981654,1.3406,169.89,169.83,5.95813157]
[1729475983557,17.68,169.99,169.83,5.95813157]
[1729475983558,0.2,170.0,169.83,571.0]
[1729475983760,2.5217,169.99,169.84,3.8894]
[1729475983957,1.2578,169.99,169.85,4.6]
[1729475984163,4.6,169.98,169.84,6.78429234]
[1729475984359,1.3047,169.97,169.84,6.78429234]
[1729475984661,2.9432,169.93,169.85,2.9444]
[1729475984858,4.6,169.92,169.85,2.9444]
[1729475985763,7.5433,169.92,169.85,2.9444]
[1729475987563,7.5433,169.92,169.87,2.944]
[1729475987564,4.6,169.92,169.87,2.944]
[1729475987765,4.6,169.92,169.82,4.6]
[1729475987964,4.6,169.92,169.82,7.60938211]
[1729475988967,7.5433,169.92,169.85,2.9443]
[1729475990760,7.5433,169.92,169.85,2.9445]
[1729475990964,7.5433,169.92,169.82,7.60938211]
[1729475991264,4.6,169.92,169.87,2.9441]
[1729475993566,2.9429,169.94,169.87,2.9441]
[1729475993765,7.5429,169.94,169.87,2.9441]
[1729475994572,2.9431,169.93,169.87,2.9441]
[1729475996370,7.5429,169.94,169.88,2.9439]
[1729475997071,4.6,169.94,169.82,7.60938211]
[1729475997276,2.9432,169.93,169.87,2.9441]
[1729476000470,2.9432,169.93,169.82,7.60938211]
[1729476000471,1.3047,169.97,169.82,7.60938211]
[1729476000673,4.58,169.96,169.83,4.58]
[1729476000871,1.3047,169.97,169.83,4.58]
[1729476001070,2.5217,169.99,169.83,4.58]
[1729476001071,4.58,169.98,169.83,4.58]
[1729476001565,4.58,169.98,169.82,3.00938211]
[1729476001771,2.9432,169.93,169.86,2.9441]
[1729476002169,4.58,169.94,169.85,4.58]
[1729476002467,2.5217,169.99,169.8,3.7374]
[1729476002468,2.5217,169.99,169.84,4.58]
[1729476002670,4.58,169.98,169.84,4.58]
[1729476003072,2.9425,169.97,169.84,7.54549896]
[1729476003266,4.58,169.98,169.84,7.54549896]
[1729476003664,4.58,169.98,169.89,2.9436]
[1729476003665,2.9424,169.97,169.89,2.9436]
[1729476005272,7.1017,169.99,169.89,4.58]
[1729476005470,2.5217,169.99,169.89,4.58]
[1729476005873,2.5217,169.99,169.85,4.58]
[1729476006378,2.5217,169.99,169.86,2.6764]
[1729476006573,2.5217,169.99,169.86,3.9892]
[1729476007971,2.9428,169.95,169.86,3.9892]
[1729476008173,4.58,169.96,169.86,3.9892]
[1729476009472,4.58,169.96,169.9,2.9435]
[1729476009674,4.58,169.96,169.89,4.58]
[1729476010783,4.58,169.96,169.9,2.9435]
[1729476011482,2.9424,169.97,169.9,2.9435]
[1729476013479,2.9424,169.97,169.89,4.58]
[1729476013680,2.9424,169.97,169.91,2.9434]
[1729476014084,10.0439,169.99,169.92,2.9432]
[1729476014478,2.9422,169.98,169.92,2.9432]
[1729476016884,2.9422,169.98,169.93,2.9431]
[1729476017582,2.9422,169.98,169.94,2.94732301]
[1729476018381,7.1017,169.99,169.86,3.9892]
[1729476018579,7.1017,169.99,169.87,4.58]
[1729476018779,7.1017,169.99,169.86,8.5692]
[1729476019581,7.1017,169.99,169.86,3.9892]
[1729476019886,2.9428,169.95,169.9,2.9435]
[1729476020479,2.9426,169.96,169.9,2.9435]
[1729476022082,2.9426,169.96,169.89,2.9438]
[1729476022282,2.9426,169.96,169.86,8.5692]
[1729476023191,2.9426,169.96,169.89,2.9438]
[1729476023484,2.9426,169.96,169.86,8.5692]
[1729476023690,2.9426,169.96,169.9,2.9436]
[1729476023990,2.9429,169.95,169.86,8.5692]
[1729476024283,7.5229,169.95,169.86,8.5692]
[1729476024690,4.58,169.95,169.86,8.5692]
[1729476024883,4.58,169.95,169.87,2.9439]
[1729476025080,4.58,169.95,169.86,3.9892]
[1729476025990,2.9429,169.94,169.88,2.9439]
[1729476027995,4.58,169.95,169.91,2.9434]
[1729476028397,4.58,169.95,169.86,3.9892]
[1729476028605,2.9422,169.98,169.86,3.9892]
[1729476028894,7.1017,169.99,169.86,3.9892]
[1729476030094,2.9424,169.97,169.91,2.9434]
[1729476031289,2.9423,169.98,169.91,2.9434]
[1729476031497,7.1017,169.99,169.89,7.5237]
[1729476031905,2.9427,169.96,169.89,7.5237]
[1729476033002,2.9427,169.96,169.89,2.9437]
[1729476034003,2.9427,169.96,169.89,2.9436]
[1729476034206,2.9426,169.96,169.89,2.9436]
[1729476034405,2.9426,169.96,169.86,8.5692]
[1729476034997,2.9426,169.96,169.89,2.9438]
[1729476035802,7.1017,169.99,169.89,2.9438]
[1729476036703,2.9427,169.96,169.9,2.9436]
[1729476038997,7.1017,169.99,169.89,2.9436]
[1729476039197,7.1017,169.99,169.86,3.9892]
[1729476040302,2.9423,169.98,169.92,2.9431]
[1729476040508,2.5217,169.99,169.89,4.58]
[1729476040705,0.2,170.0,169.89,4.58]
[1729476041607,0.2,170.0,169.95,2.9426]
[1729476041808,0.2,170.0,169.95,5.89255743]
[1729476042508,0.2,170.0,169.93,7.5229]
[1729476042904,0.2,170.0,169.93,4.58]
[1729476043209,3.1419,170.0,169.93,4.58]
[1729476043512,0.2,170.0,169.95,2.9427]
[1729476043708,0.2,170.0,169.95,5.82622236]
[1729476044012,0.2,170.0,169.95,2.88352236]
[1729476044213,0.2,170.0,169.97,2.9424]
[1729476044414,0.2,170.0,169.97,5.91628077]
[1729476044809,20.1406,170.11,169.98,4.58]
[1729476045007,5.9317,170.1,169.98,4.58]
[1729476045513,2.9406,170.08,169.98,7.4629337]
[1729476045809,5.9317,170.1,169.99,4.58]
[1729476046714,2.9405,170.08,170.02,2.9415]
[1729476047113,1.3517,170.1,170.0,4.58]
[1729476047319,5.9317,170.1,170.0,4.58]
[1729476047717,2.9405,170.08,170.02,2.9415]
[1729476047912,5.9317,170.1,169.99,7.58348946]
[1729476048115,5.9317,170.1,169.99,4.58]
[1729476048518,2.9406,170.08,170.03,2.9413]
[1729476059125,2.941,170.05,170.0,2.9419]
[1729476059917,2.9412,170.04,170.0,2.9419]
[1729476060317,7.521,170.06,170.01,2.9417]
[1729476060514,4.58,170.06,169.98,4.58]
[1729476060820,4.58,170.06,169.98,7.47591969]
[1729476061221,2.941,170.05,169.99,2.942]
[1729476061421,4.58,170.06,169.99,2.942]
[1729476061721,2.9414,170.03,169.98,2.89591969]
[1729476061928,4.58,170.06,169.96,4.58]
[1729476062125,4.58,170.06,169.94,1.2372]
[1729476062126,1.3012,170.05,169.94,1.2372]
[1729476062338,1.3012,170.05,169.93,4.58]
[1729476062339,2.9419,170.0,169.93,2.943]
[1729476062636,4.58,170.0,169.93,2.943]
[1729476062929,4.58,170.0,169.94,2.89314779]
[1729476063126,4.58,170.0,169.92,2.9432]
[1729476063325,4.58,170.0,169.93,2.94993387]
[1729476064118,4.58,170.0,169.91,4.58]
[1729476064316,7.522,170.0,169.93,2.9431]
[1729476064629,7.522,170.0,169.94,2.91874566]
[1729476065828,2.942,169.99,169.94,2.91874566]
[1729476066218,4.58,170.0,169.94,2.9429]
[1729476066426,4.58,170.0,169.95,2.89740241]
[1729476067323,7.5219,170.0,169.93,2.9431]
[1729476067524,7.5219,170.0,169.93,5.91203231]
[1729476067734,7.5219,170.0,169.93,2.9431]
[1729476068327,7.5219,170.0,169.93,5.88654397]
[1729476069131,7.5219,170.0,169.94,2.9428]
[1729476069827,2.9419,170.0,169.94,2.9428]
[1729476070629,2.9417,170.01,169.94,2.9428]
[1729476071831,2.9417,170.01,169.93,2.94344397]
[1729476072033,2.9417,170.01,169.95,2.9426]
[1729476072226,2.9417,170.01,169.95,5.83777149]
[1729476072932,4.58,170.02,169.95,2.89517149]
[1729476073131,1.3256,170.04,169.95,4.58]
[1729476073433,1.3256,170.04,169.95,7.47752624]
[1729476073834,4.2669,170.04,169.97,2.9422]
[1729476074233,1.3256,170.04,169.95,7.47752624]
[1729476074431,2.9417,170.02,169.95,10.42012624]
[1729476074937,2.9417,170.02,169.95,5.84012624]
[1729476076633,2.9417,170.02,169.96,2.9425]
[1729476077337,2.9417,170.02,169.96,5.86999914]
[1729476078333,2.9418,170.01,169.96,2.92749914]
[1729476078638,2.9418,170.01,169.95,2.9427]
[1729476079048,2.9418,170.01,169.95,5.95201725]
[1729476079337,2.9418,170.01,169.95,2.9427]
[1729476079744,2.9417,170.01,169.95,5.93847901]
[1729476079938,1.3256,170.04,169.94,4.58]
[1729476080136,1.3256,170.04,169.94,7.44952012]
[1729476081838,2.9416,170.02,169.96,2.9426]
[1729476084047,4.58,170.01,169.94,2.86952012]
[1729476084240,4.58,170.01,169.91,4.58]
[1729476085044,7.5218,170.01,169.94,2.9427]
[1729476085240,7.5218,170.01,169.94,5.83098279]
[1729476086742,7.5218,170.01,169.94,2.88828279]
[1729476087037,7.5218,170.01,169.95,2.9427]
[1729476087344,7.5218,170.01,169.96,2.96775251]
[1729476087939,2.942,170.0,169.94,2.9429]
[1729476088141,4.58,170.01,169.92,4.58]
[1729476088346,4.58,170.01,169.92,7.52562519]
[1729476088746,2.9422,169.99,169.93,2.943]
[1729476089149,4.58,170.01,169.93,2.95886859]
[1729476089150,2.9422,169.98,169.93,2.95886859]
[1729476095249,4.58,170.01,169.93,2.88373713]
[1729476095451,4.58,170.01,169.9,5.8991]
[1729476095651,7.5217,170.01,169.95,2.9426]
[1729476095957,7.5217,170.01,169.96,2.94143543]
[1729476096758,4.58,170.01,169.96,2.9424]
[1729476096965,4.58,170.01,169.97,2.90169426]
[1729476097858,7.5218,170.01,169.94,2.9428]
[1729476098664,7.5218,170.01,169.95,2.97111234]
[1729476099858,4.58,170.01,169.9,1.3191]
[1729476100064,4.58,170.01,169.93,2.943]
[1729476100065,2.9421,169.99,169.93,2.943]
[1729476100256,2.9421,169.99,169.94,2.95862821]
[1729476100955,4.58,170.01,169.86,4.25782739]
[1729476101158,2.5327,169.98,169.84,7.02149218]
[1729476101364,5.817,169.97,169.85,1.47239778]
[1729476101565,5.817,169.97,169.82,2.93080778]
[1729476101767,8.70439979,169.97,169.83,1.4726256]
[1729476102071,2.9434,169.92,169.84,4.4171256]
[1729476102264,4.58,169.91,169.84,2.9445]
[1729476102771,2.5327,169.98,169.83,7.45709816]
[1729476102772,2.9427,169.95,169.83,7.45709816]
[1729476102956,7.1127,169.98,169.83,7.45709816]
[1729476103162,1.2525,169.97,169.83,7.45709816]
[1729476103467,1.2525,169.97,169.84,1.3007]
[1729476103861,2.9428,169.95,169.88,2.9439]
[1729476104167,4.58,169.94,169.88,2.9439]
[1729476104563,4.58,169.94,169.89,2.9437]
[1729476106064,4.58,169.94,169.84,1.3007]
[1729476106272,2.9433,169.92,169.85,2.9443]
[1729476106569,4.58,169.94,169.83,2.87709816]
[1729476106770,2.5835,169.91,169.81,5.8235]
[1729476106980,4.58,169.9,169.81,8.70354415]
[1729476107875,4.58,169.9,169.84,2.9446]
[1729476120488,4.58,169.9,169.81,8.70354415]
[1729476121985,4.58,169.9,169.84,2.9445]
[1729476122385,2.9439,169.89,169.81,7.46004415]
[1729476122582,2.9439,169.89,169.82,2.9449]
[1729476122884,2.9439,169.89,169.81,2.88004415]
[1729476123190,7.5236,169.9,169.84,2.9446]
[1729476124189,4.58,169.9,169.85,2.9444]
[1729476124489,2.5835,169.91,169.82,4.58]
[1729476124490,1.3153,169.91,169.82,4.58]
[1729476124789,1.3153,169.91,169.79,1.47268286]
[1729476125088,2.9438,169.89,169.8,1.47278215]
[1729476125284,4.58,169.88,169.78,10.14440678]
[1729476125489,7.524,169.88,169.79,1.47283838]
[1729476125687,7.524,169.88,169.8,1.47283838]
[1729476125891,7.524,169.88,169.78,10.14440678]
[1729476126086,7.524,169.88,169.79,1.47287589]
[1729476126391,7.524,169.88,169.78,10.14440678]
[1729476126585,4.58,169.88,169.79,1.47287359]
[1729476126786,4.58,169.88,169.83,2.9448]
[1729476127687,2.9443,169.86,169.8,4.41817475]
[1729476127894,5.8474,169.88,169.78,2.94770678]
[1729476128087,5.8474,169.88,169.75,7.0361597]
[1729476128288,5.8474,169.88,169.76,1.47302161]
[1729476128488,5.8474,169.88,169.77,1.47302161]
[1729476128689,5.8474,169.88,169.76,2.91707531]
[1729476128993,5.8474,169.88,169.74,92.82513287]
[1729476129194,2.9449,169.83,169.76,2.9459]
[1729476129396,4.58,169.82,169.76,2.99807163]
[1729476129580,4.58,169.82,169.74,92.82513287]
[1729476129784,4.58,169.82,169.77,2.9457]
[1729476129981,4.58,169.82,169.78,2.89937332]
[1729476130381,4.58,169.82,169.78,5.84497332]
[1729476130591,4.58,169.82,169.78,2.9456]
[1729476131185,4.58,169.82,169.78,2.92942474]
[1729476131501,4.58,169.82,169.77,2.9457]
[1729476131693,4.58,169.82,169.78,2.99571465]
[1729476131889,4.58,169.82,169.75,2.9462]
[1729476132089,4.58,169.82,169.72,7.1236]
[1729476132396,4.58,169.82,169.73,1.4733218]
[1729476132694,4.58,169.82,169.72,7.1236]
[1729476132894,4.58,169.82,169.76,2.946]
[1729476133082,4.58,169.82,169.77,2.94062099]
[1729476141291,7.5251,169.82,169.72,7.1236]
[1729476141693,4.58,169.82,169.76,2.946]
[1729476142000,4.58,169.82,169.77,2.91398144]
[1729476149600,4.58,169.82,169.76,2.946]
[1729476149807,4.58,169.82,169.72,7.1236]
[1729476149808,4.58,169.82,169.72,2.5436]
[1729476150107,7.2196,169.82,169.72,2.5436]
[1729476150898,2.9453,169.81,169.72,2.5436]
[1729476151097,7.2196,169.82,169.69,5.853]
[1729476151306,1.2958,169.81,169.69,5.853]
[1729476151603,2.9458,169.78,169.71,2.9469]
[1729476151905,4.58,169.77,169.71,2.9469]
[1729476153793,7.5259,169.77,169.71,2.9469]
[1729476156807,4.58,169.77,169.71,2.9469]
[1729476157003,4.58,169.77,169.69,1.273]
[1729476157308,4.58,169.77,169.72,2.9467]
[1729476159600,4.58,169.77,169.69,1.273]
[1729476159802,1.2958,169.81,169.69,1.273]
[1729476160108,4.58,169.8,169.7,4.58]
[1729476160309,4.58,169.81,169.77,2.9457]
[1729476160505,4.58,169.81,169.77,5.82298463]
[1729476161104,4.58,169.81,169.77,2.87728463]
[1729476161311,4.58,169.81,169.76,2.946]
[1729476161806,4.58,169.81,169.77,2.88026761]
[1729476162010,4.58,169.81,169.76,2.946]
[1729476162208,4.58,169.81,169.77,2.9745577]
[1729476164209,4.58,169.81,169.76,2.946]
[1729476164712,4.58,169.81,169.76,5.82273173]
[1729476165209,4.58,169.81,169.71,1.47345875]
[1729476165416,7.5252,169.81,169.7,2.5135]
[1729476165714,7.5252,169.81,169.71,1.47346564]
[1729476165912,7.5252,169.81,169.7,2.5135]
[1729476166113,7.5252,169.81,169.71,1.47347519]
[1729476166310,7.5252,169.81,169.74,2.9463]
[1729476166611,2.9455,169.8,169.71,1.47352331]
[1729476166815,2.5296,169.8,169.7,2.5135]
[1729476167604,2.9455,169.79,169.73,2.9465]
[1729476169210,4.58,169.81,169.7,2.5135]
[1729476169411,4.58,169.81,169.71,2.94687774]
[1729476169610,4.58,169.81,169.72,1.4734591]
[1729476169817,4.58,169.81,169.75,2.9461]
[1729476170115,4.58,169.81,169.75,5.82040051]
[1729476171114,164.39758952,169.85,169.79,2.9454]
[1729476171310,164.39758952,169.85,169.75,2.87430051]
[1729476171511,4.58,169.84,169.76,1.47326455]
[1729476171711,4.58,169.84,169.76,2.99418143]
[1729476171914,4.58,169.84,169.78,2.9455]
[1729476172106,4.58,169.84,169.79,2.91226209]
[1729476173014,7.5247,169.84,169.79,2.91226209]
[1729476173314,4.58,169.84,169.79,2.91226209]
[1729476175713,4.58,169.84,169.79,2.9455]
[1729476175911,4.58,169.84,169.79,5.89265464]
[1729476176220,4.58,169.84,169.79,2.9455]
[1729476176421,4.58,169.84,169.78,2.99606274]
[1729476176618,4.58,169.84,169.77,2.9457]
[1729476176619,2.945,169.82,169.77,2.9457]
[1729476178518,2.945,169.82,169.76,2.946]
[1729476179023,4.58,169.84,169.73,1.3274]
[1729476179214,4.58,169.84,169.74,1.47332462]